fUSD/lending_fUSD_20260620
["ID","MTS","AMOUNT","RATE_DAILY","PERIOD"]
[425832906,1781957443000,-357.96910614,0.00028766,2]
[425832909,1781957443000,-157.0,0.00028905,30]
[425832908,1781957443000,-153.0,0.00028905,30]
[425832911,1781957443000,-649.0,0.00028905,30]
[425832912,1781957443000,-164.0,0.00028905,30]
[425832907,1781957443000,-150.0,0.00028767,2]
[425832910,1781957443000,-461.0,0.00028905,30]
[425832913,1781957443000,-153.0,0.00028905,30]
[425832915,1781957443000,-171.0,0.00028905,30]
[425832918,1781957443000,-200.0,0.00028908,30]
[425832914,1781957443000,-225.0,0.00028905,30]
[425832917,1781957443000,-190.0,0.00028908,30]
[425832920,1781957443000,-205.0,0.00028908,30]
[425832924,1781957443000,-2500.0,0.00029,2]
[425832919,1781957443000,-158.0,0.00028908,30]
[425832922,1781957443000,-500.0,0.00028999,7]
[425832923,1781957443000,-500.0,0.00028999,7]
[425832921,1781957443000,-505.93216523,0.0002897,2]
[425832871,1781957443000,-500.0,0.00027931,30]
[425832900,1781957443000,-11595.91792508,0.00028389,2]
[425832902,1781957443000,-504.0,0.00028421,10]
[425832916,1781957443000,-155.0,0.00028908,30]
[425832901,1781957443000,-200.13817817,0.0002842,2]
[425832879,1781957443000,-155.24,0.00027964,2]
[425832896,1781957443000,-615.32592104,0.000283,2]
[425832874,1781957443000,-500.0,0.00027931,7]
[425832875,1781957443000,-500.0,0.00027931,30]
[425832876,1781957443000,-500.0,0.00027931,30]
[425832880,1781957443000,-264.36,0.00028033,30]
[425832882,1781957443000,-155.31,0.00028033,30]
[425832877,1781957443000,-500.0,0.00027931,7]
[425832881,1781957443000,-280.37,0.00028033,30]
[425832883,1781957443000,-7998.22930999,0.00028056,2]
[425832885,1781957443000,-171.93,0.0002813,2]
[425832884,1781957443000,-217.0,0.0002813,7]
[425832878,1781957443000,-19020.962594,0.00027932,2]
[425832891,1781957443000,-155.31,0.00028194,7]
[425832886,1781957443000,-172.22,0.0002813,2]
[425832887,1781957443000,-186.86,0.0002813,30]
[425832889,1781957443000,-264.36,0.00028194,7]
[425832890,1781957443000,-280.37,0.00028194,7]
[425832898,1781957443000,-615.32592103,0.000283,2]
[425832893,1781957443000,-152.96775523,0.000283,2]
[425832888,1781957443000,-155.24,0.00028171,30]
[425832894,1781957443000,-152.96775521,0.000283,2]
[425832895,1781957443000,-152.96775521,0.000283,2]
[425832905,1781957443000,-1229.0,0.00028662,2]
[425832892,1781957443000,-287.7,0.00028267,2]
[425832947,1781957444000,-500.0,0.00029243,2]
[425832956,1781957444000,-500.0,0.00029243,2]
[425832948,1781957444000,-152.0,0.00029243,2]
[425832940,1781957444000,-500.0,0.00029243,2]
[425832944,1781957444000,-500.0,0.00029243,2]
[425832949,1781957444000,-500.0,0.00029243,2]
[425832951,1781957444000,-152.0,0.00029243,2]
[425832955,1781957444000,-152.0,0.00029243,2]
[425832946,1781957444000,-152.0,0.00029243,2]
[425832957,1781957444000,-152.0,0.00029243,2]
[425832953,1781957444000,-500.0,0.00029243,2]
[425832937,1781957444000,-500.0,0.00029243,2]
[425832950,1781957444000,-500.0,0.00029243,2]
[425832936,1781957444000,-152.0,0.00029243,2]
[425832929,1781957444000,-10000.0,0.00029,2]
[425832939,1781957444000,-152.0,0.00029243,2]
[425832938,1781957444000,-151.0,0.00029243,2]
[425832933,1781957444000,-201.6445164,0.0002913,20]
[425832935,1781957444000,-1030.0,0.00029243,2]
[425832934,1781957444000,-2005.0,0.000292,2]
[425832942,1781957444000,-500.0,0.00029243,2]
[425832928,1781957444000,-10000.0,0.00029,2]
[425832931,1781957444000,-161.97,0.00029,2]
[425832930,1781957444000,-161.99,0.00029,2]
[425832932,1781957444000,-161.97,0.00029,2]
[425832927,1781957444000,-181.7,0.00029,2]
[425832925,1781957444000,-541.24282986,0.00029,2]
[425832926,1781957444000,-580.59,0.00029,30]
[425832958,1781957444000,-500.0,0.00029243,2]
[425832941,1781957444000,-152.0,0.00029243,2]
[425832960,1781957444000,-500.0,0.00029243,2]
[425832943,1781957444000,-152.0,0.00029243,2]
[425832962,1781957444000,-174.61919141,0.00029243,2]
[425832992,1781957444000,-924340.89906309,0.000298,5]
[425832986,1781957444000,-181.08010149,0.00029791,2]
[425832990,1781957444000,-31598.84701072,0.000298,5]
[425832989,1781957444000,-151.0,0.00029793,2]
[425832991,1781957444000,-500.22722923,0.000298,5]
[425832988,1781957444000,-159.71865296,0.00029791,2]
[425832984,1781957444000,-151.0,0.00029738,2]
[425832985,1781957444000,-167.87249729,0.0002979,2]
[425832982,1781957444000,-11595.91792508,0.000297,2]
[425832983,1781957444000,-4291.0,0.00029731,5]
[425832979,1781957444000,-151.0,0.00029628,2]
[425832976,1781957444000,-161.31855254,0.00029517,2]
[425832977,1781957444000,-151.0,0.00029518,2]
[425832980,1781957444000,-151.0,0.00029683,2]
[425832973,1781957444000,-151.0,0.00029408,2]
[425832959,1781957444000,-152.0,0.00029243,2]
[425832972,1781957444000,-151.0,0.00029353,2]
[425832975,1781957444000,-504.0,0.00029474,11]
[425832964,1781957444000,-721.12765534,0.00029243,2]
[425832961,1781957444000,-152.0,0.00029243,2]
[425832965,1781957444000,-159.71865296,0.00029243,2]
[425832969,1781957444000,-1203.18,0.0002925,2]
[425832966,1781957444000,-151.0,0.00029243,2]
[425832963,1781957444000,-578.20924308,0.00029243,2]
[425832967,1781957444000,-1000.0,0.0002925,2]
[425832971,1781957444000,-2813.97970235,0.00029303,2]
[425832970,1781957444000,-151.0,0.00029298,2]
[425832981,1781957444000,-7998.22930999,0.000297,2]
[425832978,1781957444000,-151.0,0.00029573,2]
[425832974,1781957444000,-151.0,0.00029463,2]
[425832968,1781957444000,-1526.68,0.0002925,2]
[425833001,1781957446000,-65.3499271,0.0002755,30]
[425832999,1781957446000,-172.93,0.0002755,30]
[425833000,1781957446000,-224.1000729,0.0002755,30]
[425833002,1781957446000,-289.45,0.00027711,7]
[425832996,1781957446000,-171.27,0.00026829,30]
[425832994,1781957446000,-171.27,0.00024658,2]
[425832995,1781957446000,-171.27,0.00025743,7]
[425832997,1781957446000,-190.3,0.0002755,2]
[425833003,1781957446000,-155.26,0.00027757,7]
[425832998,1781957446000,-155.26,0.0002755,30]
[425833004,1781957446000,-128.22891854,0.0002784,7]
[425833016,1781957446000,-186.55,0.00028605,120]
[425833005,1781957446000,-62.07108146,0.0002784,7]
[425833006,1781957446000,-172.93,0.0002784,7]
[425833010,1781957446000,-190.31,0.0002813,30]
[425833013,1781957446000,-155.26,0.00028378,7]
[425833007,1781957446000,-289.45,0.00027872,2]
[425833011,1781957446000,-172.93,0.0002813,2]
[425833014,1781957446000,-172.93,0.0002842,30]
[425833008,1781957446000,-155.26,0.00027964,2]
[425833009,1781957446000,-289.45,0.00028033,30]
[425833017,1781957446000,-172.93,0.0002871,7]
[425833012,1781957446000,-155.26,0.00028171,30]
[425833015,1781957446000,-155.26,0.00028585,2]
[425833020,1781957447000,-1434.93148021,0.000298,5]
[425833018,1781957447000,-155.26,0.00028792,30]
[425833019,1781957447000,-172.97,0.00029,2]
[425833027,1781958374000,-151.0,0.00015649,2]
[425833025,1781958374000,-151.0,0.00015649,2]
[425833026,1781958374000,-151.0,0.00015649,2]
[425833024,1781958374000,-151.0,0.00015649,2]
[425833028,1781958423000,166.66,0.00021956,30]
[425833029,1781958549000,-300.0,0.00015747,2]
[425833031,1781958549000,-150.0,0.00016003,2]
[425833032,1781958549000,-120.11113402,0.00016042,2]
[425833030,1781958549000,-151.5,0.00015845,2]
[425833038,1781958631000,-151.0,0.0001594,2]
[425833039,1781958631000,-19.11089055,0.0001594,2]
[425833051,1781958637000,-150.0,0.0001632,2]
[425833052,1781958637000,-152.0,0.00016436,2]
[425833053,1781958637000,-152.0,0.00016436,2]
[425833054,1781958637000,-131.72089055,0.00016436,2]
[425833056,1781958637000,-152.0,0.00016436,2]
[425833050,1781958637000,-150.0,0.00016161,2]
[425833057,1781958637000,-151.0,0.00016436,2]
[425833055,1781958637000,-18.27910945,0.00016436,2]
[425833061,1781958637000,-119.55173582,0.00016436,2]
[425833062,1781958637000,-33.44826418,0.00016436,2]
[425833049,1781958637000,-131.88910945,0.0001594,2]
[425833058,1781958637000,-152.0,0.00016436,2]
[425833059,1781958637000,-150.0,0.00016436,2]
[425833060,1781958637000,-153.0,0.00016436,2]
[425833066,1781958638000,-252.44826418,0.00016436,2]
[425833064,1781958638000,-266.0,0.00016436,2]
[425833063,1781958638000,-153.0,0.00016436,2]
[425833065,1781958638000,-297.55173582,0.00016436,2]
[425833068,1781958638000,-314.0,0.00016437,2]
[425833072,1781958638000,-127.35250762,0.00016437,2]
[425833069,1781958638000,-151.0,0.00016437,2]
[425833070,1781958638000,-311.0,0.00016437,2]
[425833071,1781958638000,-314.0,0.00016437,2]
[425833067,1781958638000,-311.0,0.00016437,2]
[425833077,1781958640000,-189.64749238,0.00016437,2]
[425833078,1781958640000,-150.0,0.00016437,2]
[425833079,1781958640000,-316.0,0.00016437,2]
[425833080,1781958640000,-319.0,0.00016437,2]
[425833082,1781958640000,-316.0,0.00016437,2]
[425833083,1781958640000,-317.0,0.00016437,2]
[425833086,1781958640000,-248.26152909,0.00016437,2]
[425833084,1781958640000,-320.0,0.00016437,2]
[425833085,1781958640000,-151.0,0.00016437,2]
[425833081,1781958640000,-151.0,0.00016437,2]
[425833096,1781958642000,-139.2721468,0.00016437,2]
[425833098,1781958642000,-151.0,0.00016437,2]
[425833099,1781958642000,-151.0,0.00016437,2]
[425833095,1781958642000,-151.0,0.00016437,2]
[425833094,1781958642000,-195.02785315,0.00016437,2]
[425833101,1781958642000,-151.0,0.00016437,2]
[425833100,1781958642000,-153.0,0.00016437,2]
[425833103,1781958642000,-447.16030894,0.00016437,2]
[425833102,1781958642000,-151.0,0.00016437,2]
[425833104,1781958642000,-529.3941732,0.00016437,2]
[425833097,1781958642000,-11.7278532,0.00016437,2]
[425833114,1781958643000,-500.0,0.00016438,2]
[425833115,1781958643000,-500.0,0.00016438,2]
[425833113,1781958643000,-500.0,0.00016438,2]
[425833116,1781958643000,-500.0,0.00016438,2]
[425833108,1781958643000,-500.0,0.00016438,2]
[425833106,1781958643000,-159.6,0.00016438,2]
[425833110,1781958643000,-500.0,0.00016438,2]
[425833109,1781958643000,-500.0,0.00016438,2]
[425833111,1781958643000,-500.0,0.00016438,2]
[425833107,1781958643000,-500.0,0.00016438,2]
[425833105,1781958643000,-114.41040471,0.00016437,2]
[425833121,1781958643000,-500.0,0.00016438,2]
[425833112,1781958643000,-500.0,0.00016438,2]
[425833122,1781958643000,-500.0,0.00016438,2]
[425833125,1781958643000,-500.0,0.00016438,2]
[425833120,1781958643000,-500.0,0.00016438,2]
[425833117,1781958643000,-500.0,0.00016438,2]
[425833124,1781958643000,-500.0,0.00016438,2]
[425833133,1781958643000,-500.0,0.00016438,2]
[425833119,1781958643000,-500.0,0.00016438,2]
[425833126,1781958643000,-500.0,0.00016438,2]
[425833123,1781958643000,-500.0,0.00016438,2]
[425833127,1781958643000,-500.0,0.00016438,2]
[425833128,1781958643000,-500.0,0.00016438,2]
[425833130,1781958643000,-500.0,0.00016438,2]
[425833129,1781958643000,-500.0,0.00016438,2]
[425833131,1781958643000,-500.0,0.00016438,2]
[425833132,1781958643000,-500.0,0.00016438,2]
[425833134,1781958643000,-430.04874816,0.00016438,2]
[425833118,1781958643000,-500.0,0.00016438,2]
[425833135,1781958645000,-229.92641495,0.00016437,2]
[425833138,1781958645000,-415.37448225,0.00016438,2]
[425833136,1781958645000,-69.95125184,0.00016438,2]
[425833137,1781958645000,-84.62551775,0.00016438,2]
[425833150,1781958646000,-500.0,0.00016438,2]
[425833163,1781958646000,-500.0,0.00016438,2]
[425833160,1781958646000,-500.0,0.00016438,2]
[425833159,1781958646000,-500.0,0.00016438,2]
[425833158,1781958646000,-500.0,0.00016438,2]
[425833156,1781958646000,-500.0,0.00016438,2]
[425833157,1781958646000,-598.94118761,0.00016438,2]
[425833154,1781958646000,-500.0,0.00016438,2]
[425833151,1781958646000,-500.0,0.00016438,2]
[425833155,1781958646000,-500.0,0.00016438,2]
[425833152,1781958646000,-500.0,0.00016438,2]
[425833141,1781958646000,-500.0,0.00016438,2]
[425833148,1781958646000,-500.0,0.00016438,2]
[425833145,1781958646000,-500.0,0.00016438,2]
[425833147,1781958646000,-500.0,0.00016438,2]
[425833153,1781958646000,-500.0,0.00016438,2]
[425833149,1781958646000,-500.0,0.00016438,2]
[425833140,1781958646000,-500.0,0.00016438,2]
[425833142,1781958646000,-500.0,0.00016438,2]
[425833139,1781958646000,-500.0,0.00016438,2]
[425833162,1781958646000,-500.0,0.00016438,2]
[425833144,1781958646000,-500.0,0.00016438,2]
[425833143,1781958646000,-500.0,0.00016438,2]
[425833146,1781958646000,-500.0,0.00016438,2]
[425833161,1781958646000,-500.0,0.00016438,2]
[425833166,1781958646000,-150.0,0.00016478,2]
[425833195,1781958646000,-315.0,0.00017191,2]
[425833197,1781958646000,-541.60422028,0.00017554,2]
[425833196,1781958646000,-320.0,0.00017191,2]
[425833164,1781958646000,-317.0,0.00016438,2]
[425833194,1781958646000,-40.39577972,0.00017191,2]
[425833192,1781958646000,-317.0,0.00017191,2]
[425833190,1781958646000,-151.0,0.00017191,2]
[425833188,1781958646000,-321.0,0.00017191,2]
[425833187,1781958646000,-317.0,0.00017191,2]
[425833191,1781958646000,-319.0,0.00017191,2]
[425833193,1781958646000,-110.60422028,0.00017191,2]
[425833183,1781958646000,-309.0,0.00017191,2]
[425833185,1781958646000,-151.0,0.00017191,2]
[425833189,1781958646000,-310.0,0.00017191,2]
[425833174,1781958646000,-319.0,0.00017191,2]
[425833173,1781958646000,-152.0,0.00017191,2]
[425833176,1781958646000,-319.0,0.00017191,2]
[425833172,1781958646000,-254.0,0.00017112,2]
[425833181,1781958646000,-318.0,0.00017191,2]
[425833165,1781958646000,-151.0,0.00016438,2]
[425833169,1781958646000,-500.0,0.00016883,2]
[425833170,1781958646000,-500.0,0.00016883,2]
[425833168,1781958646000,-150.0,0.00016795,2]
[425833179,1781958646000,-151.0,0.00017191,2]
[425833167,1781958646000,-150.0,0.00016637,2]
[425833171,1781958646000,-150.0,0.00016953,2]
[425833199,1781959000000,150.0,0.00015464,2]
[425833200,1781959657000,-250.0,0.00014,2]
[425833201,1781959710000,-150.0,0.00014243,2]
[425833202,1781959735000,191.825619,0.00022799,120]
[425833203,1781959764000,-500.0,0.00014484,2]
[425833204,1781959784000,519.318074,0.00022799,120]
[425833205,1781959817000,-347.52076468,0.00014484,2]
[425833219,1781959831000,-343.85924228,0.00014484,2]
[425833216,1781959831000,-500.0,0.00014484,2]
[425833220,1781959831000,-500.0,0.00014484,2]
[425833218,1781959831000,-500.0,0.00014484,2]
[425833221,1781959831000,-500.0,0.00014484,2]
[425833214,1781959831000,-500.0,0.00014484,2]
[425833217,1781959831000,-500.0,0.00014484,2]
[425833212,1781959831000,-500.0,0.00014484,2]
[425833208,1781959831000,-500.0,0.00014484,2]
[425833210,1781959831000,-474.60316853,0.00014484,2]
[425833213,1781959831000,-500.0,0.00014484,2]
[425833211,1781959831000,-500.0,0.00014484,2]
[425833215,1781959831000,-500.0,0.00014484,2]
[425833222,1781959831000,-500.0,0.00014484,2]
[425833209,1781959831000,-500.0,0.00014484,2]
[425833223,1781959831000,-607.42744927,0.00014484,2]
[425833241,1781959831000,-189.17762271,0.00016261,7]
[425833224,1781959831000,-500.00000001,0.00014484,2]
[425833238,1781959831000,-150.0,0.00015942,2]
[425833232,1781959831000,-600.0,0.000154,2]
[425833233,1781959831000,-300.0,0.000154,2]
[425833235,1781959831000,-843.72,0.00015903,2]
[425833236,1781959831000,-500.0,0.00015942,2]
[425833234,1781959831000,-570.628192,0.00015569,2]
[425833230,1781959831000,-300.0,0.00015176,2]
[425833229,1781959831000,-600.0,0.00014971,2]
[425833228,1781959831000,-300.0,0.00014486,2]
[425833227,1781959831000,-500.0,0.00014484,2]
[425833226,1781959831000,-500.0,0.00014484,2]
[425833225,1781959831000,-500.0,0.00014484,2]
[425833231,1781959831000,-300.0,0.00015176,2]
[425833261,1781959832000,-500.0,0.00016438,2]
[425833260,1781959832000,-500.0,0.00016438,2]
[425833263,1781959832000,-500.0,0.00016438,2]
[425833267,1781959832000,-500.0,0.00016438,2]
[425833266,1781959832000,-500.0,0.00016438,2]
[425833264,1781959832000,-500.0,0.00016438,2]
[425833270,1781959832000,-500.0,0.00016438,2]
[425833265,1781959832000,-500.0,0.00016438,2]
[425833271,1781959832000,-500.0,0.00016438,2]
[425833268,1781959832000,-570.68976012,0.00016438,2]
[425833269,1781959832000,-500.0,0.00016438,2]
[425833259,1781959832000,-500.0,0.00016438,2]
[425833252,1781959832000,-290.0,0.00016438,2]
[425833258,1781959832000,-500.0,0.00016438,2]
[425833255,1781959832000,-500.0,0.00016438,2]
[425833256,1781959832000,-500.0,0.00016438,2]
[425833254,1781959832000,-500.0,0.00016438,2]
[425833244,1781959832000,-6406.91,0.00016273,2]
[425833272,1781959832000,-500.0,0.00016438,2]
[425833253,1781959832000,-500.0,0.00016438,2]
[425833249,1781959832000,-95234.8786,0.00016338,2]
[425833251,1781959832000,-163.2,0.00016438,2]
[425833248,1781959832000,-178.0,0.00016338,2]
[425833250,1781959832000,-550.0,0.00016437,2]
[425833246,1781959832000,-166.66,0.00016287,2]
[425833262,1781959832000,-500.0,0.00016438,2]
[425833273,1781959832000,-500.0,0.00016438,2]
[425833257,1781959832000,-500.0,0.00016438,2]
[425833275,1781959832000,-500.0,0.00016438,2]
[425833301,1781959832000,-520.62527295,0.00016636,2]
[425833302,1781959832000,-343.14613815,0.00016636,2]
[425833298,1781959832000,-925.47375149,0.00016636,2]
[425833296,1781959832000,-2630.27155563,0.00016636,2]
[425833300,1781959832000,-1131.20273173,0.00016636,2]
[425833299,1781959832000,-961.4944576,0.00016636,2]
[425833297,1781959832000,-768.14599492,0.00016636,2]
[425833292,1781959832000,-2948.12108811,0.00016636,2]
[425833294,1781959832000,-162.4485136,0.00016636,2]
[425833289,1781959832000,-151.0,0.00016633,2]
[425833295,1781959832000,-582.97566696,0.00016636,2]
[425833293,1781959832000,-12943.46868352,0.00016636,2]
[425833291,1781959832000,-113526.86287857,0.00016636,2]
[425833290,1781959832000,-5290.7073567,0.00016636,2]
[425833284,1781959832000,-269.0,0.00016511,2]
[425833288,1781959832000,-166.66,0.0001663,2]
[425833285,1781959832000,-377.0,0.00016514,2]
[425833287,1781959832000,-5405.7034719,0.00016592,2]
[425833286,1781959832000,-1599.64586207,0.00016536,2]
[425833283,1781959832000,-500.0,0.00016438,2]
[425833281,1781959832000,-500.0,0.00016438,2]
[425833282,1781959832000,-500.0,0.00016438,2]
[425833280,1781959832000,-500.0,0.00016438,2]
[425833278,1781959832000,-500.0,0.00016438,2]
[425833279,1781959832000,-500.0,0.00016438,2]
[425833277,1781959832000,-500.0,0.00016438,2]
[425833274,1781959832000,-500.0,0.00016438,2]
[425833276,1781959832000,-500.0,0.00016438,2]
[425833304,1781959837000,-167.37527295,0.00014485,2]
[425833306,1781959837000,-1351.90172374,0.00016636,2]
[425833305,1781959837000,-418.97356446,0.00016636,2]
[425833309,1781959838000,-700.0,0.00016636,2]
[425833308,1781959838000,-426.4607146,0.00016636,2]
[425833307,1781959838000,-404.3482089,0.00016636,2]
[425833440,1781959840000,-2332.94922716,0.00016636,2]
[425833439,1781959840000,-790.5766307,0.00016636,2]
[425833438,1781959840000,-23093.08099808,0.00016636,2]
[425833444,1781959842000,-310.93633824,0.00016636,2]
[425833477,1781959843000,-150.99,0.00017728,2]
[425833481,1781959843000,-283.27,0.00018,2]
[425833482,1781959843000,-166.66,0.00018001,2]
[425833479,1781959843000,-9999.99,0.00017728,2]
[425833484,1781959843000,-150.0,0.00018002,2]
[425833486,1781959843000,-250.0,0.00018062,2]
[425833480,1781959843000,-9999.99,0.00017728,2]
[425833485,1781959843000,-150.0,0.00018002,2]
[425833488,1781959843000,-163.2,0.0001841,2]
[425833487,1781959843000,-1599.64586199,0.00018132,2]
[425833489,1781959843000,-870.0,0.00018755,2]
[425833490,1781959843000,-848.07741484,0.00019079,2]
[425833492,1781959843000,-255.0,0.00019452,2]
[425833491,1781959843000,-164.53,0.00019131,2]
[425833494,1781959843000,-186.55,0.00019686,2]
[425833478,1781959843000,-1109.61,0.00017728,2]
[425833483,1781959843000,-420.16342236,0.00018002,2]
[425833474,1781959843000,-935.0,0.00017555,2]
[425833495,1781959843000,-1599.64586199,0.00019728,2]
[425833476,1781959843000,-166.66,0.00017658,2]
[425833447,1781959843000,-14.73080839,0.00016636,2]
[425833452,1781959843000,-168.55,0.00016712,2]
[425833450,1781959843000,-274.22,0.00016636,2]
[425833451,1781959843000,-203.18836862,0.00016656,2]
[425833448,1781959843000,-77661.8693322,0.00016636,2]
[425833449,1781959843000,-974.6910821,0.00016636,2]
[425833453,1781959843000,-213.72,0.0001674,7]
[425833454,1781959843000,-166.66,0.00016972,2]
[425833457,1781959843000,-302.25,0.00017099,2]
[425833459,1781959843000,-327.24,0.00017153,2]
[425833461,1781959843000,-501.08961846,0.00017203,2]
[425833469,1781959843000,-166.66,0.00017315,2]
[425833463,1781959843000,-1431.21,0.00017205,2]
[425833471,1781959843000,-286.0,0.000175,7]
[425833472,1781959843000,-1500.00000012,0.00017539,2]
[425833455,1781959843000,-197.41,0.00016977,2]
[425833467,1781959843000,-209.79,0.00017241,2]
[425833465,1781959843000,-200.0,0.00017221,2]
[425833498,1781959843000,-206.44,0.0001981,2]
[425833501,1781959843000,-47899.17,0.00019887,2]
[425833497,1781959843000,-500.0,0.00019781,2]
[425833513,1781959843000,-163.2,0.00020381,2]
[425833514,1781959843000,-500.0,0.00020986,2]
[425833526,1781959843000,-5114.98898341,0.00021701,2]
[425833528,1781959843000,-350.085934,0.00021706,2]
[425833522,1781959843000,-168.0,0.00021,2]
[425833521,1781959843000,-165.0,0.00021,2]
[425833524,1781959843000,-2665.17985721,0.00021606,2]
[425833525,1781959843000,-168.55,0.00021636,2]
[425833523,1781959843000,-1599.64586199,0.00021324,2]
[425833527,1781959843000,-2005.79793922,0.00021701,2]
[425833532,1781959843000,-194.2,0.00021918,8]
[425833529,1781959843000,-1010.04,0.00021918,2]
[425833531,1781959843000,-716.0,0.00021918,8]
[425833530,1781959843000,-5000.0,0.00021918,2]
[425833534,1781959843000,-364.0,0.00022,2]
[425833536,1781959843000,-190.0,0.00022,2]
[425833493,1781959843000,-265.0,0.00019452,2]
[425833516,1781959843000,-151.0,0.00021,2]
[425833515,1781959843000,-152.21,0.00020987,2]
[425833535,1781959843000,-509.0,0.00022,2]
[425833518,1781959843000,-509.0,0.00021,2]
[425833496,1781959843000,-152.21,0.00019752,2]
[425833517,1781959843000,-364.0,0.00021,2]
[425833509,1781959843000,-168.0,0.0002,2]
[425833505,1781959843000,-154.0,0.0002,2]
[425833499,1781959843000,-150.0,0.00019831,2]
[425833533,1781959843000,-151.0,0.00022,2]
[425833506,1781959843000,-190.0,0.0002,2]
[425833507,1781959843000,-156.0,0.0002,2]
[425833504,1781959843000,-509.0,0.0002,2]
[425833500,1781959843000,-151.0,0.00019884,2]
[425833502,1781959843000,-151.0,0.0002,2]
[425833508,1781959843000,-165.0,0.0002,2]
[425833512,1781959843000,-588.15147393,0.00020219,2]
[425833511,1781959843000,-195.0,0.00020136,2]
[425833510,1781959843000,-153.0,0.00020136,2]
[425833519,1781959843000,-190.0,0.00021,2]
[425833503,1781959843000,-364.0,0.0002,2]
[425833520,1781959843000,-156.0,0.00021,2]
[425833556,1781959844000,-151.0,0.00022471,2]
[425833558,1781959844000,-151.0,0.00022471,2]
[425833560,1781959844000,-151.0,0.00022471,2]
[425833559,1781959844000,-500.0,0.00022471,2]
[425833562,1781959844000,-500.0,0.00022471,2]
[425833561,1781959844000,-151.0,0.00022471,2]
[425833564,1781959844000,-151.0,0.00022471,2]
[425833565,1781959844000,-500.0,0.00022471,2]
[425833563,1781959844000,-151.0,0.00022471,2]
[425833568,1781959844000,-500.0,0.00022471,2]
[425833570,1781959844000,-151.0,0.00022471,2]
[425833567,1781959844000,-151.0,0.00022471,2]
[425833569,1781959844000,-151.0,0.00022471,2]
[425833557,1781959844000,-500.0,0.00022471,2]
[425833575,1781959844000,-151.0,0.00022471,2]
[425833566,1781959844000,-151.0,0.00022471,2]
[425833554,1781959844000,-151.0,0.00022471,2]
[425833553,1781959844000,-151.0,0.00022471,2]
[425833547,1781959844000,-151.0,0.00022471,2]
[425833572,1781959844000,-151.0,0.00022471,2]
[425833537,1781959844000,-164.0,0.00022,2]
[425833539,1781959844000,-168.0,0.00022,2]
[425833541,1781959844000,-163.2,0.00022353,2]
[425833538,1781959844000,-165.0,0.00022,2]
[425833542,1781959844000,-243.80612229,0.00022407,2]
[425833540,1781959844000,-152.21,0.00022221,2]
[425833543,1781959844000,-2023.17,0.00022453,2]
[425833544,1781959844000,-1268.94,0.00022466,2]
[425833545,1781959844000,-663.62,0.00022466,2]
[425833555,1781959844000,-151.0,0.00022471,2]
[425833549,1781959844000,-151.0,0.00022471,2]
[425833550,1781959844000,-151.0,0.00022471,2]
[425833546,1781959844000,-151.0,0.00022471,2]
[425833548,1781959844000,-200.0,0.00022471,2]